bitfinex/quotes_SOLUSD_20260220
["timestamp","ask_amount","ask_price","bid_price","bid_amount"]
[1771604577152,4.46047479,84.259,84.23,11.55238282]
[1771604577449,4.46047479,84.259,84.221,4.11211956]
[1771604577841,4.46047479,84.259,84.223,4.11211956]
[1771604578230,4.46047479,84.259,84.22,11.65238282]
[1771604578437,4.46047479,84.259,84.221,4.11211956]
[1771604578754,11.86690084,84.268,84.232,4.11211956]
[1771604578950,11.86690084,84.268,84.231,11.87211359]
[1771604578951,4.46047479,84.26,84.231,11.87211359]
[1771604579335,4.46047479,84.259,84.226,11.87278714]
[1771604580233,4.46047479,84.249,84.22,0.1]
[1771604580560,4.46047479,84.24,84.221,11.87352323]
[1771604580740,11.55238282,84.25,84.22,0.1]
[1771604580741,11.86957708,84.249,84.22,0.1]
[1771604581068,16.33005187,84.249,84.22,0.1]
[1771604581564,11.55238282,84.26,84.221,4.11211956]
[1771604582139,16.32864317,84.259,84.221,4.11211956]
[1771604582450,4.46047479,84.258,84.221,4.11211956]
[1771604582847,4.46047479,84.256,84.222,11.87338225]
[1771604584455,4.46047479,84.239,84.201,15.98846307]
[1771604584657,4.46047479,84.249,84.211,4.11211956]
[1771604584957,4.46047479,84.258,84.23,11.55238282]
[1771604585261,4.46047479,84.267,84.231,4.11211956]
[1771604585468,4.46047479,84.249,84.21,11.55238282]
[1771604585639,4.46047479,84.239,84.202,11.87620246]
[1771604586165,4.46047479,84.239,84.203,4.32562013]
[1771604586849,4.05882166,84.237,84.201,11.87634351]
[1771604587044,11.87112704,84.238,84.201,11.87634351]
[1771604587254,11.87112704,84.238,84.202,4.21880351]
[1771604587457,11.87098612,84.239,84.202,4.21880351]
[1771604587845,11.55238282,84.26,84.221,4.21880351]
[1771604588047,11.55238282,84.27,84.231,4.21880351]
[1771604588252,11.86676001,84.269,84.231,4.21880351]
[1771604589167,11.86676001,84.269,84.233,4.21880351]
[1771604589378,4.09958365,84.279,84.241,4.21880351]
[1771604589665,4.09958365,84.259,84.221,4.21880351]
[1771604591166,4.09958365,84.257,84.222,11.87338225]
[1771604591346,4.09958365,84.257,84.222,16.09218576]
[1771604593069,4.09958365,84.257,84.223,4.21880351]
[1771604593367,15.96817461,84.256,84.224,11.8731003]
[1771604593554,4.09958365,84.266,84.23,15.77118633]
[1771604593754,4.09958365,84.266,84.231,4.21880351]
[1771604594161,11.55238282,84.28,84.241,4.21880351]
[1771604594459,11.55238282,84.28,84.24,11.55238282]
[1771604594460,4.09958365,84.283,84.25,11.55238282]
[1771604594646,4.09958365,84.288,84.251,4.21880351]
[1771604594846,4.09958365,84.299,84.261,4.21880351]
[1771604595180,11.55238282,84.29,84.25,15.77118633]
[1771604595469,4.09958365,84.287,84.252,4.21880351]
[1771604595667,11.86296976,84.296,84.261,4.21880351]
[1771604596161,4.09958365,84.295,84.261,4.21880351]
[1771604596343,4.09958365,84.307,84.271,4.21880351]
[1771604596864,4.09958365,84.307,84.27,11.55238282]
[1771604596865,11.85972319,84.319,84.291,4.21880351]
[1771604597371,15.95860362,84.324,84.291,16.08243358]
[1771604597549,4.09958365,84.323,84.291,16.08243358]
[1771604597865,4.09958365,84.323,84.292,4.21880351]
[1771604599172,4.09958365,84.323,84.286,11.8642334]
[1771604599467,4.09958365,84.327,84.29,11.55238282]
[1771604599773,4.09958365,84.327,84.291,4.21880351]
[1771604599954,4.09958365,84.324,84.291,4.21880351]
[1771604600570,4.09958365,84.319,84.286,11.8642334]
[1771604600771,3.59958365,84.319,84.29,11.55238282]
[1771604600970,11.85836183,84.329,84.291,4.21880351]
[1771604601168,11.85836183,84.329,84.301,4.21880351]
[1771604601472,11.8569108,84.339,84.302,11.86211477]
[1771604601660,11.8555051,84.349,84.311,4.21880351]
[1771604602170,11.85409974,84.359,84.32,15.77118633]
[1771604602549,11.55238282,84.35,84.302,11.86211477]
[1771604602776,4.09958365,84.349,84.311,4.21880351]
[1771604603556,4.09958365,84.347,84.312,11.86070784]
[1771604603756,4.09958365,84.347,84.31,11.55238282]
[1771604603960,4.09958365,84.347,84.312,4.21880351]
[1771604604360,11.85564565,84.348,84.321,4.21880351]
[1771604604760,4.09958365,84.357,84.321,4.21880351]
[1771604604761,11.85498848,84.353,84.321,4.21880351]
[1771604604971,4.09958365,84.357,84.33,11.55238282]
[1771604605272,29.6317803,84.369,84.322,4.21880351]
[1771604605273,4.09958365,84.368,84.322,4.21880351]
[1771604605464,4.09958365,84.368,84.331,4.21880351]
[1771604605661,4.09958365,84.359,84.321,4.21880351]
[1771604605865,4.09958365,84.359,84.322,4.21880351]
[1771604606656,4.09958365,84.359,84.312,0.28432314]
[1771604606657,4.09958365,84.359,84.316,11.86001966]
[1771604606856,4.09958365,84.359,84.321,4.21880351]
[1771604607153,4.09958365,84.339,84.292,4.21880351]
[1771604607352,4.09958365,84.339,84.271,4.21880351]
[1771604607353,4.09958365,84.309,84.271,4.21880351]
[1771604607559,4.09958365,84.299,84.259,4.21880351]
[1771604607761,4.09958365,84.289,84.254,4.21880351]
[1771604608086,11.55238282,84.33,84.281,4.21880351]
[1771604608381,4.09958365,84.329,84.291,4.21880351]
[1771604608674,4.09958365,84.309,84.28,11.55238282]
[1771604608854,11.85747317,84.335,84.3,15.77118633]
[1771604609056,11.85747317,84.335,84.301,4.21880351]
[1771604609252,4.09958365,84.329,84.29,11.55238282]
[1771604609474,4.09958365,84.329,84.29,15.77118633]
[1771604609880,4.09958365,84.327,84.291,11.86366278]
[1771604610083,11.55238282,84.33,84.292,4.21880351]
[1771604610268,4.09958365,84.337,84.301,4.21880351]
[1771604610671,4.09958365,84.337,84.292,4.21880351]
[1771604610980,4.09958365,84.329,84.292,4.21880351]
[1771604611563,4.09958365,84.358,84.32,11.55238282]
[1771604611767,4.09958365,84.356,84.321,11.85944189]
[1771604612075,47.407079,84.376,84.321,11.85944189]
[1771604612076,11.85387148,84.361,84.33,15.77118633]
[1771604612281,4.09958365,84.359,84.321,11.85944189]
[1771604612687,11.85387148,84.361,84.294,4.21880351]
[1771604612892,4.09958365,84.429,84.351,4.21880351]
[1771604613083,11.84494612,84.425,84.391,4.21880351]
[1771604613385,4.09958365,84.437,84.4,11.55238282]
[1771604613962,4.09958365,84.437,84.401,11.84820085]
[1771604614163,4.09958365,84.449,84.41,11.55238282]
[1771604614483,4.09958365,84.449,84.402,0.28432314]
[1771604614484,4.09958365,84.439,84.401,11.84820085]
[1771604614779,4.09958365,84.429,84.392,11.8494644]
[1771604614961,4.09958365,84.429,84.393,4.21880351]
[1771604615482,4.09958365,84.478,84.422,5.36086188]
[1771604615676,11.83733965,84.479,84.45,4.21880351]
[1771604616073,11.83733965,84.479,84.441,11.84258831]
[1771604616386,11.83657562,84.484,84.45,11.55238282]
[1771604616680,11.83657562,84.484,84.442,4.21880351]
[1771604616681,11.83739765,84.479,84.442,4.21880351]
[1771604616997,11.99239325,84.5,84.441,41.4490591]
[1771604616998,4.09958365,84.513,84.465,4.21880351]
[1771604617196,4.33368002,84.51,84.48,11.55238282]
[1771604617485,4.13368002,84.499,84.46,11.55238282]
[1771604617705,0.2,84.51,84.448,3.69383402]
[1771604617706,0.2,84.51,84.49,11.55238282]
[1771604617870,0.2,84.51,84.49,11.5359063]
[1771604618066,0.2,84.51,84.49,23.37150568]
[1771604618390,0.2,84.51,84.459,5.36086188]
[1771604618391,0.2,84.51,84.48,11.5359063]
[1771604618570,0.2,84.51,84.47,11.5359063]
[1771604618571,4.13368002,84.508,84.47,11.5359063]
[1771604618766,4.13368002,84.499,84.457,4.30007453]
[1771604618966,11.5359063,84.49,84.458,11.84019356]
[1771604619184,4.13368002,84.499,84.46,11.5359063]
[1771604619772,11.8330592,84.509,84.47,11.5359063]
[1771604619972,0.2,84.51,84.481,4.30007453]
[1771604620186,0.2,84.51,84.472,11.83824225]
[1771604620187,4.13368002,84.509,84.472,11.83824225]
[1771604620606,4.13368002,84.479,84.359,4.30007453]
[1771604620769,4.13368002,84.479,84.309,97.19898803]
[1771604620770,11.5359063,84.42,84.391,4.30007453]
[1771604620971,10.5752394,84.564,84.41,23.0718126]
[1771604621173,165.7,84.877,84.41,23.0718126]
[1771604621174,0.2,84.58,84.434,0.28432314]
[1771604621388,0.2,84.58,84.55,0.2]
[1771604621595,11.5359063,84.62,84.544,10.08742112]
[1771604621797,11.5359063,84.62,84.58,11.5359063]
[1771604621979,11.5359063,84.62,84.567,4.30007453]
[1771604621980,11.5359063,84.64,84.583,3.69383402]
[1771604622180,11.5359063,84.64,84.6,11.5359063]
[1771604622498,11.5359063,84.64,84.58,4.30007453]
[1771604622499,3.69383402,84.655,84.58,11.5359063]
[1771604622713,11.5359063,84.65,84.6,11.5359063]
[1771604623001,11.80930336,84.679,84.574,4.5]
[1771604623002,11.5359063,84.62,84.574,4.5]
[1771604623181,11.5359063,84.66,84.591,4.5]
[1771604623382,11.5359063,84.65,84.601,4.5]
[1771604623697,11.5359063,84.63,84.576,4.5]
[1771604623994,0.14216157,84.629,84.59,11.5359063]
[1771604624197,0.14216157,84.629,84.546,5.36086188]
[1771604624198,23.34927866,84.65,84.61,11.5359063]
[1771604624507,11.81250655,84.657,84.62,11.5359063]
[1771604624691,47.21867797,84.713,84.631,4.5]
[1771604625003,11.80930336,84.679,84.65,11.5359063]
[1771604625301,0.2,84.67,84.609,3.69383402]
[1771604625485,11.5359063,84.65,84.6,11.5359063]
[1771604625690,11.5359063,84.65,84.592,4.5]
[1771604625891,11.5359063,84.65,84.591,11.82158858]
[1771604625892,11.7359063,84.67,84.63,11.5359063]
[1771604626099,11.5359063,84.66,84.62,11.5359063]
[1771604626291,11.5359063,84.66,84.611,11.81879424]
[1771604626605,0.14216157,84.659,84.61,11.5359063]
[1771604626798,11.5359063,84.65,84.61,11.5359063]
[1771604627192,0.14216157,84.659,84.61,23.35475718]
[1771604627392,0.14216157,84.659,84.62,11.5359063]
[1771604627606,11.5359063,84.66,84.62,11.5359063]
[1771604627984,11.5359063,84.66,84.61,11.5359063]
[1771604628193,135.82302849,84.669,84.61,11.5359063]
[1771604628398,11.5359063,84.65,84.61,11.5359063]
[1771604628594,0.14216157,84.649,84.6,11.5359063]
[1771604628899,0.14216157,84.649,84.61,11.5359063]
[1771604630184,11.5359063,84.63,84.583,4.5]
[1771604630398,11.5359063,84.63,84.58,11.5359063]
[1771604630603,11.5359063,84.64,84.6,11.5359063]
[1771604630805,41.34721024,84.649,84.6,11.5359063]
[1771604631189,11.5359063,84.63,84.593,4.5]
[1771604631385,11.5359063,84.63,84.58,11.5359063]
[1771604631591,11.5359063,84.63,84.59,11.5359063]
[1771604631993,11.5359063,84.64,84.6,11.5359063]
[1771604632193,47.23953206,84.675,84.6,11.5359063]
[1771604632194,11.81069813,84.669,84.63,11.5359063]
[1771604632411,11.81069813,84.669,84.601,11.82019125]
[1771604632412,11.81069813,84.669,84.653,4.5]
[1771604632593,11.80981168,84.676,84.66,11.5359063]
[1771604633091,11.80888962,84.682,84.66,11.5359063]
[1771604633291,11.5359063,84.7,84.661,4.5]
[1771604633501,11.80817915,84.688,84.67,0.2]
[1771604633787,11.5359063,84.7,84.66,11.5359063]
[1771604634004,29.51397719,84.706,84.66,11.5359063]
[1771604634195,47.20575596,84.736,84.67,11.5359063]
[1771604634396,11.80400627,84.717,84.671,4.5]
[1771604634608,0.14216157,84.716,84.68,11.5359063]
[1771604634810,0.14216157,84.716,84.636,5.36086188]
[1771604634811,41.31402196,84.717,84.645,4.5]
[1771604635011,11.5359063,84.7,84.66,11.5359063]
[1771604635228,41.31402196,84.717,84.65,11.5359063]
[1771604635229,0.14216157,84.689,84.65,11.5359063]
[1771604635514,0.14216157,84.689,84.625,3.69383402]
[1771604635515,11.5359063,84.76,84.681,4.5]
[1771604635714,11.5359063,84.76,84.71,11.5359063]
[1771604635900,3.69383402,84.768,84.72,11.5359063]
[1771604636216,135.65960055,84.771,84.72,11.5359063]
[1771604636395,41.28770451,84.771,84.73,11.5359063]
[1771604636595,11.5359063,84.77,84.73,11.5359063]
[1771604637116,11.5359063,84.75,84.71,11.5359063]
[1771604637320,11.5359063,84.73,84.7,11.5359063]
[1771604637621,0.14216157,84.759,84.721,4.5]
[1771604637802,3.69383402,84.781,84.72,11.5359063]
[1771604637803,0.1,84.81,84.751,4.5]
[1771604638119,11.6359063,84.81,84.761,4.5]
[1771604638429,11.79287003,84.797,84.77,11.5359063]
[1771604638817,11.79287003,84.797,84.78,16.0359063]
[1771604639129,0.1,84.81,84.78,4.5]
[1771604639130,28.44656059,84.798,84.78,4.5]
[1771604639417,28.44656059,84.798,84.78,11.5359063]
[1771604639596,16.65380774,84.798,84.78,11.5359063]
[1771604640253,16.65380774,84.798,84.771,4.5]
[1771604640397,0.1,84.81,84.79,11.5359063]
[1771604640708,0.1,84.83,84.801,4.5]
[1771604640908,11.88836287,84.83,84.81,11.5359063]
[1771604641109,11.88836287,84.83,84.801,4.5]
[1771604641504,0.1,84.83,84.801,4.5]
[1771604641703,0.1,84.84,84.821,4.45]
[1771604642020,0.396,84.898,84.85,15.83598083]
[1771604642315,11.78008929,84.889,84.852,4.30007453]
[1771604642513,11.78008929,84.889,84.794,4.30007453]
[1771604642514,11.5359063,84.86,84.794,4.30007453]
[1771604642721,11.5359063,84.83,84.798,4.30007453]
[1771604642905,11.5359063,84.82,84.798,4.30007453]
[1771604643104,11.5359063,84.82,84.758,41.29403713]
[1771604643105,11.5359063,84.81,84.781,4.30007453]
[1771604643306,11.5359063,84.79,84.75,11.5359063]
[1771604643504,11.5359063,84.82,84.78,11.5359063]
[1771604644107,0.14216157,84.829,84.75,11.5359063]
[1771604644108,11.5359063,84.79,84.75,11.5359063]
[1771604644324,11.79398271,84.789,84.751,11.7992708]
[1771604644518,11.5359063,84.77,84.73,11.5359063]
[1771604644905,11.5359063,84.77,84.71,47.21964564]
[1771604644906,11.5359063,84.75,84.71,11.5359063]
[1771604645106,11.5359063,84.74,84.7,11.5359063]
[1771604645427,11.5359063,84.74,84.71,11.5359063]
[1771604645635,4.13368002,84.739,84.695,11.80707243]
[1771604645841,11.5359063,84.72,84.681,4.30007453]
[1771604646128,0.14216157,84.741,84.691,4.30007453]
[1771604646129,11.5359063,84.73,84.691,4.30007453]
[1771604646330,11.80372761,84.719,84.691,4.30007453]
[1771604646837,11.5359063,84.72,84.691,4.30007453]
[1771604647024,11.5359063,84.75,84.711,4.06778878]
[1771604647211,11.5359063,84.74,84.72,0.41535]
[1771604647765,11.5359063,84.74,84.7,11.5359063]
[1771604647931,17.90350351,84.75,84.71,17.90350351]
[1771604648139,41.28575641,84.775,84.73,17.90350351]
[1771604648313,11.79525027,84.78,84.742,4.18239204]
[1771604648516,59.18684059,84.78,84.742,4.18239204]
[1771604648812,17.90350351,84.76,84.724,4.18239204]
[1771604649013,17.90350351,84.76,84.73,17.90350351]
[1771604649532,17.90350351,84.77,84.73,17.90350351]
[1771604650333,17.90350351,84.77,84.731,4.18239204]
[1771604650933,11.79676532,84.769,84.731,4.18239204]
[1771604651139,17.90350351,84.76,84.731,4.18239204]
[1771604651432,17.90350351,84.75,84.71,17.90350351]
[1771604651622,17.90350351,84.75,84.712,4.18239204]
[1771604651822,17.90350351,84.74,84.712,4.18239204]
[1771604652027,4.23208329,84.753,84.703,4.18239204]
[1771604652327,17.90350351,84.73,84.696,11.80689036]
[1771604652532,17.90350351,84.73,84.69,22.08589555]
[1771604652533,4.23208329,84.733,84.691,11.80762521]
[1771604652722,17.90350351,84.72,84.69,4.18239204]
[1771604653027,17.90350351,84.73,84.691,4.18239204]
[1771604653229,17.90350351,84.72,84.691,4.18239204]
[1771604653838,17.90350351,84.72,84.681,11.80902445]
[1771604654016,17.90350351,84.72,84.679,4.18239204]
[1771604654017,17.90350351,84.71,84.679,4.18239204]
[1771604654220,17.90350351,84.7,84.669,11.81069813]
[1771604654416,17.90350351,84.71,84.67,17.90350351]
[1771604654836,4.23208329,84.726,84.68,17.90350351]
[1771604655132,17.90350351,84.71,84.671,11.81041915]
[1771604655338,17.90350351,84.71,84.672,4.18239204]
[1771604655923,17.90350351,84.7,84.672,4.18239204]
[1771604656448,17.90350351,84.69,84.66,11.81195369]
[1771604656746,17.90350351,84.69,84.651,11.81320953]
[1771604656928,11.80790893,84.689,84.651,11.81320953]
[1771604657239,17.90350351,84.68,84.651,11.81320953]
[1771604657442,17.90350351,84.69,84.652,4.18239204]
[1771604657740,17.90350351,84.69,84.661,4.18239204]
[1771604658332,17.90350351,84.69,84.651,11.81320953]
[1771604658535,17.90350351,84.69,84.652,4.18239204]
[1771604658942,11.80790893,84.689,84.652,4.18239204]
[1771604660526,11.80725437,84.694,84.661,4.18239204]
[1771604660731,18.10350351,84.9,84.68,17.90350351]
[1771604660948,17.90350351,84.82,84.703,3.69383402]
[1771604661239,4.5,84.819,84.78,17.90350351]
[1771604661445,4.5,84.819,84.756,0.42648471]
[1771604661646,4.5,84.809,84.77,17.90350351]
[1771604661847,4.5,84.809,84.751,3.69383402]
[1771604661848,4.5,84.799,84.751,3.69383402]
[1771604662039,182.69468769,84.841,84.76,17.90350351]
[1771604662040,4.5,84.789,84.76,17.90350351]
[1771604662247,4.5,84.789,84.737,0.14216157]
[1771604662248,4.5,84.789,84.75,17.90350351]
[1771604662425,4.5,84.789,84.76,17.90350351]
[1771604663142,4.5,84.789,84.742,29.50122715]
[1771604663143,4.5,84.787,84.75,17.90350351]
[1771604663334,4.5,84.787,84.737,0.14216157]
[1771604663335,17.90350351,84.78,84.74,17.90350351]
[1771604663649,4.5,84.779,84.75,17.90350351]
[1771604663827,4.5,84.779,84.735,0.28432314]
[1771604664152,4.5,84.779,84.74,17.90350351]
[1771604664831,4.5,84.779,84.751,11.7992708]
[1771604665250,4.5,84.779,84.732,0.28432314]
[1771604665251,4.5,84.778,84.74,17.90350351]
[1771604665645,4.5,84.778,84.75,17.90350351]
[1771604666037,4.5,84.778,84.733,41.3062207]
[1771604666038,106.0807864,84.841,84.77,17.90350351]
[1771604666240,4.5,84.799,84.76,17.90350351]
[1771604666954,4.5,84.799,84.761,11.79787874]
[1771604667148,4.5,84.797,84.76,17.90350351]
[1771604667362,11.79273096,84.798,84.755,11.79870178]
[1771604667363,4.5,84.789,84.755,11.79870178]
[1771604668326,4.5,84.789,84.76,17.90350351]
[1771604668531,4.5,84.801,84.77,17.90350351]
[1771604668931,4.5,84.801,84.771,11.796487]
[1771604669127,29.69595634,84.8,84.76,17.90350351]
[1771604669353,4.5,84.801,84.77,17.90350351]
[1771604669646,11.79245283,84.8,84.77,17.90350351]
[1771604669851,4.5,84.789,84.757,3.69383402]
[1771604670050,4.5,84.789,84.76,11.46419911]
[1771604670293,4.5,84.846,84.781,0.28432314]
[1771604670431,4.5,84.859,84.83,11.46419911]
[1771604671028,4.5,84.857,84.82,11.46419911]
[1771604671251,4.5,84.857,84.83,11.46419911]
[1771604671462,4.5,84.868,84.83,11.46419911]
[1771604672254,4.5,84.859,84.82,11.46419911]
[1771604672630,4.5,84.849,84.82,11.46419911]
[1771604673551,4.5,84.849,84.813,11.7906453]
[1771604673552,4.5,84.848,84.813,11.79062362]
[1771604673735,4.5,84.848,84.81,11.46419911]
[1771604673936,4.5,84.829,84.79,11.46419911]
[1771604674539,4.5,84.819,84.783,3.69383402]
[1771604675563,4.5,84.819,84.784,11.79467824]
[1771604676247,15.96419911,84.81,84.78,11.46419911]
[1771604676447,11.46419911,84.82,84.781,41.28283458]
[1771604676667,15.96419911,84.83,84.79,11.46419911]
[1771604676849,4.5,84.829,84.79,11.46419911]
[1771604678068,4.5,84.829,84.79,11.45436116]
[1771604679769,4.5,84.836,84.79,11.45436116]
[1771604679951,11.45436116,84.83,84.786,3.69383402]
[1771604680154,16.28842141,84.829,84.79,11.45436116]
[1771604680455,4.5,84.829,84.79,11.45436116]
[1771604681266,23.24269119,84.83,84.783,11.79481735]
[1771604681267,4.5,84.819,84.783,11.79481735]
[1771604681848,4.5,84.819,84.783,41.28186074]
[1771604682074,4.5,84.819,84.785,11.79453912]
[1771604682380,4.5,84.818,84.785,11.79453912]
[1771604682550,11.78988767,84.819,84.764,0.28432314]
[1771604682551,4.5,84.799,84.764,0.28432314]
[1771604682870,4.5,84.799,84.764,0.42648471]
[1771604683281,4.5,84.799,84.76,11.45436116]
[1771604684148,11.79273096,84.798,84.761,11.79787874]
[1771604684343,4.5,84.797,84.761,41.29257559]
[1771604684772,4.5,84.797,84.77,11.45436116]
[1771604684974,4.5,84.797,84.761,41.29257559]
[1771604685375,4.5,84.797,84.761,11.79787874]
[1771604685551,4.5,84.797,84.751,0.42648471]
[1771604685751,11.45436116,84.79,84.751,0.42648471]
[1771604685970,4.5,84.779,84.74,11.45436116]
[1771604686152,4.5,84.779,84.725,3.83599559]
[1771604686153,11.79423887,84.788,84.75,11.45436116]
[1771604686468,4.5,84.779,84.742,0.42648471]
[1771604686671,4.5,84.779,84.742,0.28432314]
[1771604686873,11.45436116,84.77,84.741,11.80066319]
[1771604687174,4.5,84.779,84.741,11.80066319]
[1771604687363,4.5,84.779,84.741,41.30232118]
[1771604687565,4.5,84.759,84.719,0.14216157]
[1771604687758,4.5,84.759,84.72,11.45436116]
[1771604687956,4.5,84.759,84.73,11.45436116]
[1771604688259,4.5,84.777,84.74,11.45436116]
[1771604688461,4.5,84.776,84.77,2.81377701]
[1771604688968,4.5,84.776,84.731,11.80205591]
[1771604689271,4.5,84.759,84.727,11.80255136]
[1771604689969,4.5,84.759,84.721,11.80342666]
[1771604690286,4.5,84.757,84.721,11.80342666]
[1771604690570,4.5,84.757,84.722,0.42648471]
[1771604690777,4.5,84.765,84.73,11.45436116]
[1771604691159,4.5,84.759,84.721,11.80342666]
[1771604691363,4.5,84.759,84.72,11.45436116]
[1771604691364,4.5,84.739,84.711,3.69383402]
[1771604691665,4.5,84.739,84.654,94.50185484]
[1771604691666,4.5,84.739,84.71,11.45436116]
[1771604691873,4.5,84.739,84.7,11.45436116]
[1771604692256,11.80108097,84.738,84.701,11.80623605]
[1771604692456,47.18873133,84.766,84.701,11.80623605]
[1771604692457,11.45436116,84.76,84.704,3.69383402]
[1771604692785,16.29791716,84.761,84.73,11.45436116]
[1771604693067,4.5,84.759,84.72,11.45436116]
[1771604694062,4.5,84.749,84.711,0.42648471]
[1771604694273,4.5,84.747,84.711,12.23132705]
[1771604694461,4.5,84.747,84.711,41.74343291]
[1771604695065,4.5,84.747,84.711,11.80484234]
[1771604695463,11.79968848,84.748,84.711,11.80484234]
[1771604695464,4.5,84.739,84.711,11.80484234]
[1771604697363,4.5,84.737,84.703,11.80584331]
[1771604697562,4.5,84.729,84.694,3.97815716]
[1771604697768,4.5,84.729,84.692,0.28432314]
[1771604698158,11.80108097,84.738,84.692,0.28432314]
[1771604698355,4.5,84.738,84.7,11.45436116]
[1771604698557,4.5,84.729,84.701,11.80623605]
[1771604699080,4.5,84.729,84.696,11.80690261]
[1771604699959,11.45436116,84.74,84.696,11.80690261]
[1771604700170,4.5,84.739,84.7,11.45436116]
[1771604700383,11.8004667,84.743,84.671,11.81041915]
[1771604700384,4.5,84.709,84.671,11.81041915]
[1771604700566,11.45436116,84.7,84.671,41.33646596]
[1771604700879,11.80526042,84.708,84.67,0.1]
[1771604700880,4.5,84.689,84.67,0.1]
[1771604701079,11.80526042,84.708,84.67,0.1]
[1771604701080,4.5,84.679,84.67,0.1]
[1771604701491,4.45,84.689,84.65,11.45436116]
[1771604701666,4.45,84.699,84.66,11.45436116]
[1771604701862,4.45,84.699,84.652,0.1]
[1771604702080,41.31841148,84.708,84.66,11.45436116]
[1771604702081,4.45,84.689,84.66,11.45436116]
[1771604702263,15.90436116,84.7,84.66,11.45436116]
[1771604702673,15.90436116,84.7,84.647,3.83599559]
[1771604702674,4.45,84.715,84.68,11.45436116]
[1771604703078,4.45,84.713,84.68,11.45436116]
[1771604703288,11.45436116,84.71,84.672,0.1]
[1771604703493,4.45,84.71,84.68,11.45436116]
[1771604703707,15.90436116,84.71,84.67,11.45436116]
[1771604703867,4.45,84.699,84.662,0.42648471]
[1771604704188,4.45,84.699,84.661,11.81181417]
[1771604704496,4.45,84.699,84.67,11.45436116]
[1771604704662,4.45,84.713,84.68,11.45436116]
[1771604705062,4.45,84.689,84.651,11.81320953]
[1771604705460,0.14216157,84.715,84.651,11.81320953]
[1771604705461,15.90436116,84.68,84.651,11.81320953]
[1771604705665,4.45,84.669,84.63,11.45436116]
[1771604706285,4.45,84.669,84.64,11.45436116]
[1771604706482,4.45,84.669,84.63,11.45436116]
[1771604706671,4.45,84.659,84.63,11.45436116]
[1771604706969,4.45,84.659,84.64,11.45436116]
[1771604707170,4.45,84.659,84.61,3.69383402]
[1771604707371,11.45436116,84.64,84.61,11.45436116]
[1771604707572,4.45,84.649,84.62,11.45436116]
[1771604707764,4.45,84.649,84.603,0.1]
[1771604707765,4.45,84.649,84.61,11.45436116]
[1771604707962,4.45,84.639,84.6,11.45436116]
[1771604708163,4.45,84.639,84.592,0.1]
[1771604708384,4.45,84.629,84.59,11.45436116]
[1771604708765,4.45,84.627,84.591,11.82158858]
[1771604708968,4.45,84.627,84.574,0.1]
[1771604708969,11.45436116,84.6,84.56,11.45436116]
[1771604709169,4.45,84.609,84.57,11.45436116]
[1771604709386,4.45,84.599,84.567,11.82486265]
[1771604709567,4.45,84.599,84.563,11.82547424]
[1771604709763,88.62315071,84.628,84.563,11.82547424]
[1771604709764,15.90436116,84.61,84.57,11.45436116]
[1771604710065,4.45,84.623,84.59,11.45436116]
[1771604710379,4.45,84.623,84.56,11.86774885]
[1771604710380,11.45436116,84.61,84.57,11.45436116]
[1771604710571,41.35747033,84.628,84.563,3.69383402]
[1771604710572,11.45436116,84.6,84.563,3.69383402]
[1771604710772,41.35747033,84.628,84.56,27.01594403]
[1771604710773,11.81781654,84.618,84.58,11.45436116]
[1771604711290,4.45,84.63,84.6,11.45436116]
[1771604711466,11.45436116,84.65,84.61,11.45436116]
[1771604711672,11.45436116,84.64,84.601,4.12236591]
[1771604712180,11.45436116,84.65,84.611,4.12236591]
[1771604712382,11.81209322,84.659,84.621,4.12236591]
[1771604712583,11.45436116,84.67,84.632,0.42648471]
[1771604712773,11.45436116,84.68,84.642,4.54885062]
[1771604713084,11.80539978,84.707,84.671,4.12236591]
[1771604713388,23.22787172,84.71,84.68,11.45436116]
[1771604713389,11.77351056,84.71,84.68,11.45436116]
[1771604713593,15.87626385,84.717,84.68,11.45436116]
[1771604713887,47.19681952,84.752,84.69,11.45436116]
[1771604713888,4.07215699,84.716,84.69,11.45436116]
[1771604714081,4.07215699,84.727,84.69,11.45436116]
[1771604714784,34.96057538,84.75,84.71,11.45436116]
[1771604714983,23.25386735,84.75,84.711,11.80484234]
[1771604715772,23.25386735,84.75,84.71,15.57672707]
[1771604715773,4.07215699,84.739,84.705,0.42648471]
[1771604716878,4.07215699,84.739,84.711,11.80484234]
[1771604717990,11.45436116,84.73,84.699,11.80640779]
[1771604718292,4.07215699,84.737,84.7,11.45436116]
[1771604719168,4.07215699,84.729,84.69,11.45436116]
[1771604719372,4.07215699,84.719,84.684,0.42648471]